Workbook

Sheet Общий брак
A1: ЯНВАРЬ 2013 г. | C1: ………………….2015 г.
B2: Массовые виды | G2: Документная | L2: ИТОГО, кг.
A3: вид несоответствий | B3: Буйко | C3: Булавский А.В. | D3: Хомич Н.Н. | E3: Сандульская Л.А. | G3: Кузьбар | H3: Булавский А.В. | I3: Хомич Н.Н. | J3: Сандульская Л.А.
A4: Формат не соотв. размеру | B4: 800 | F4: =SUM(B4:E4) -> 800 | G4: =SUM(Буйко!M43) -> 0 | K4: =SUM(G4:J4) -> 0 | L4: =SUM(K4+F4) -> 800
A5: Спутник | B5: =SUM(Буйко!M23) -> 0 | F5: =SUM(B5:E5) -> 0 | G5: =SUM(Буйко!M44) -> 0 | K5: =SUM(G5:J5) -> 0 | L5: =SUM(K5+F5) -> 0
A6: Сорность | B6: =SUM(Буйко!M9) -> 0 | F6: =SUM(B6:E6) -> 0 | G6: =SUM(Буйко!M45) -> 600 | K6: =SUM(G6:J6) -> 600 | L6: =SUM(K6+F6) -> 600
A7: Складка | B7: =SUM(Буйко!M7) -> 30 | F7: =SUM(B7:E7) -> 30 | G7: =SUM(Буйко!M46) -> 0 | K7: =SUM(G7:J7) -> 0 | L7: =SUM(K7+F7) -> 30
A8: Ребристость | B8: =SUM(Буйко!M8) -> 0 | F8: =SUM(B8:E8) -> 0 | G8: =SUM(Буйко!M47) -> 110.5 | K8: =SUM(G8:J8) -> 110.5 | L8: =SUM(K8+F8) -> 110.5
A9: разнооттеночность | B9: =SUM(Буйко!M33) -> 0 | F9: =SUM(B9:E9) -> 0 | G9: =SUM(Буйко!M48) -> 0 | K9: 0 | L9: =SUM(K9+F9) -> 0
A10: Пятна от пены | B10: =SUM(Буйко!M37) -> 0 | F10: 0 | G10: =SUM(Буйко!M49) -> 4723.3 | K10: 4723.3 | L10: 4723.3
A11: Пятна от каландра | B11: =SUM(Буйко!M12) -> 520 | F11: 520 | G11: =SUM(Буйко!M50) -> 0 | K11: 0 | L11: 520
A12: Пусковая | B12: =SUM(Буйко!M3) -> 1050 | F12: 1050 | G12: =SUM(Буйко!M51) -> 0 | K12: 0 | L12: 1050
A13: Прокл.не соотв.ТУ | B13: =SUM(Буйко!M16) -> 2080 | F13: 2080 | G13: =SUM(Буйко!M52) -> 0 | K13: 0 | L13: 2080
A14: Продушина | B14: =SUM(Буйко!M6) -> 800 | F14: 800 | G14: =SUM(Буйко!M53) -> 102.3 | K14: 102.3 | L14: 902.3
A15: Переходная | B15: 1000 | F15: 1000 | G15: =SUM(Буйко!M54) -> 0 | K15: 0 | L15: 1000
A16: Обрывы | B16: =SUM(Буйко!M31) -> 900 | F16: 900 | G16: =SUM(Буйко!M55) -> 0 | K16: 0 | L16: 900
A17: Нет защиты | B17: =SUM(Буйко!M30) -> 0 | F17: 0 | G17: =SUM(Буйко!M56) -> 0 | K17: 0 | L17: 0
A18: Нет защитного волокна | B18: =SUM(Буйко!M34) -> 0 | F18: 0 | G18: =SUM(Буйко!M57) -> 0 | K18: 0 | L18: 0
A19: Неравномерный просвет | B19: =SUM(Буйко!M29) -> 2100 | F19: 2100 | G19: =SUM(Буйко!M58) -> 0 | K19: 0 | L19: 2100
A20: Недомол | B20: =SUM(Буйко!M28) -> 0 | F20: 0 | G20: =SUM(Буйко!M59) -> 0 | K20: 0 | L20: 0
A21: Не соотв.по цвету | B21: =SUM(Буйко!M26) -> 850 | F21: 850 | G21: =SUM(Буйко!M60) -> 0 | K21: 0 | L21: 850
A22: Надрывы | B22: =SUM(Буйко!M22) -> 0 | F22: 0 | G22: =SUM(Буйко!M61) -> 0 | K22: 0 | L22: 0
A23: Мало защитного волокна | B23: =SUM(Буйко!M36) -> 0 | F23: 0 | G23: =SUM(Буйко!M62) -> 0 | K23: 0 | L23: 0
A24: Линейная деф.не соотв.ТУ | B24: =SUM(Буйко!M19) -> 0 | F24: 0 | G24: =SUM(Буйко!M63) -> 0 | K24: 0 | L24: 0
A25: Коробатая | B25: =SUM(Буйко!M25) -> 0 | F25: 0 | G25: =SUM(Буйко!M64) -> 0 | K25: 0 | L25: 0
A26: Колебания массы | B26: =SUM(Буйко!M14) -> 860 | F26: 860 | G26: =SUM(Буйко!M65) -> 0 | K26: 0 | L26: 860
A27: Зольность не соотв.ТУ | B27: =SUM(Буйко!M18) -> 0 | F27: =SUM(B27:E27) -> 0 | G27: =SUM(Буйко!M66) -> 0 | K27: =SUM(G27:J27) -> 0 | L27: =SUM(K27+F27) -> 0
A28: Дыры | B28: =SUM(Буйко!M11) -> 0 | F28: =SUM(B28:E28) -> 0 | G28: =SUM(Буйко!M67) -> 0 | K28: =SUM(G28:J28) -> 0 | L28: =SUM(K28+F28) -> 0
A29: Деформация рулона, Мягкий край рулона | B29: =SUM(Буйко!M13) -> 0 | F29: =SUM(B29:E29) -> 0 | G29: =SUM(Буйко!M68) -> 3000 | K29: =SUM(G29:J29) -> 3000 | L29: =SUM(K29+F29) -> 3000
A30: Грязные полосы,пятна | B30: =SUM(Буйко!M10) -> 0 | F30: =SUM(B30:E30) -> 0 | G30: =SUM(Буйко!M69) -> 0 | K30: =SUM(G30:J30) -> 0 | L30: =SUM(K30+F30) -> 0
A31: Гладк.не соотв.ТУ | B31: =SUM(Буйко!M15) -> 0 | F31: =SUM(B31:E31) -> 0 | G31: =SUM(Буйко!M70) -> 0 | K31: =SUM(G31:J31) -> 0 | L31: =SUM(K31+F31) -> 0
A32: Выщипы | B32: =SUM(Буйко!M27) -> 0 | F32: 0 | G32: =SUM(Буйко!M71) -> 0 | K32: 0 | L32: =SUM(K32+F32) -> 0
A33: Выработка бассейнов | B33: 1000 | F33: 1000 | G33: =SUM(Буйко!M72) -> 0 | K33: 0 | L33: 1000
A34: впитываемость | B34: =SUM(Буйко!M32) -> 0 | F34: 0 | G34: =SUM(Буйко!M73) -> 0 | K34: 0 | L34: 0
A35: Воздушная складка | B35: =SUM(Буйко!M24) -> 0 | F35: 0 | G35: =SUM(Буйко!M74) -> 0 | K35: 0 | L35: 0
A36: Брак по намотке,нет обрезки, махровый край | B36: =SUM(Буйко!M21) -> 460 | F36: 460 | G36: =SUM(Буйко!M75) -> 0 | K36: 0 | L36: 460
A37: Kit не соотв.ТУ | B37: =SUM(Буйко!M17) -> 0 | F37: 0 | G37: =SUM(Буйко!M76) -> 0 | K37: 0 | L37: 0
A38: 4 защитных волокна | B38: =SUM(Буйко!M35) -> 0 | F38: =SUM(B38:E38) -> 0 | G38: =SUM(Буйко!M77) -> 0 | K38: 0 | L38: 0
A39: количество несоответствий [Σ ] | B39: =SUM(B4:B38) -> 12450 | C39: 0 | D39: 0 | E39: 0 | F39: 12450 | G39: 8536.1 | H39: 0 | I39: 0 | J39: 0 | K39: 8536.1 | L39: 20986.1
A40: без пусковой, выраб. | B40: =SUM(B39)-SUM(B4:B5) -> 11650 | C40: 0 | D40: 0 | E40: 0 | F40: 11650 | G40: 8536.1 | H40: 0 | I40: 0 | J40: 0 | K40: 8536.1 | L40: 20186.1
A43: ЯНВАРЬ 2013 г. | C43: 2015год
A44: 2014год | B44: Все виды бумаг | F44: ИТОГО, кг.
A45: вид несоответствий | B45: Кузьбар | C45: Булавский А.В. | D45: Хомич Н.Н. | E45: Сандульская Л.А.
A46: Пусковая | B46: =SUM(B4+G4) -> 800 | C46: 0 | D46: 0 | E46: 0 | F46: =SUM(B46:E46) -> 800
A47: Выработка бассейнов | B47: 0 | C47: 0 | D47: 0 | E47: 0 | F47: =SUM(B47:E47) -> 0
A48: Переходная | B48: 600 | C48: 0 | D48: 0 | E48: 0 | F48: =SUM(B48:E48) -> 600
A49: Продушина | B49: =SUM(B7+G7) -> 30 | C49: =SUM(C7+H7) -> 0 | D49: =SUM(D7+I7) -> 0 | E49: =SUM(E7+J7) -> 0 | F49: =SUM(B49:E49) -> 30
A50: Складка | B50: 110.5 | C50: 0 | D50: 0 | E50: 0 | F50: =SUM(B50:E50) -> 110.5
A51: Ребристость | B51: 0 | C51: 0 | D51: 0 | E51: 0 | F51: =SUM(B51:E51) -> 0
A52: Сорность | B52: 4723.3 | C52: 0 | D52: 0 | E52: 0 | F52: 4723.3
A53: Грязные полосы,пятна | B53: 520 | C53: 0 | D53: 0 | E53: 0 | F53: 520
A54: Дыры | B54: 1050 | C54: 0 | D54: 0 | E54: 0 | F54: 1050
A55: Пятна от каландра | B55: 2080 | C55: 0 | D55: 0 | E55: 0 | F55: 2080
A56: Деформация рулона, Мягкий край рулона | B56: 902.3 | C56: 0 | D56: 0 | E56: 0 | F56: 902.3
A57: Колебания массы | B57: 1000 | C57: 0 | D57: 0 | E57: 0 | F57: 1000
A58: Гладк.не соотв.ТУ | B58: 900 | C58: 0 | D58: 0 | E58: 0 | F58: 900
A59: Прокл.не соотв.ТУ | B59: 0 | C59: 0 | D59: 0 | E59: 0 | F59: 0
A60: Kit не соотв.ТУ | B60: 0 | C60: 0 | D60: 0 | E60: 0 | F60: 0
A61: Зольность не соотв.ТУ | B61: 2100 | C61: 0 | D61: 0 | E61: 0 | F61: 2100
A62: Линейная деф.не соотв.ТУ | B62: 0 | C62: 0 | D62: 0 | E62: 0 | F62: 0
A63: Формат не соотв. размеру | B63: 850 | C63: 0 | D63: 0 | E63: 0 | F63: 850
A64: Брак по намотке,нет обрезки, махровый край | B64: 0 | C64: 0 | D64: 0 | E64: 0 | F64: 0
A65: Надрывы | B65: 0 | C65: 0 | D65: 0 | E65: 0 | F65: 0
A66: Спутник | B66: 0 | C66: 0 | D66: 0 | E66: 0 | F66: 0
A67: Воздушная складка | B67: 0 | C67: 0 | D67: 0 | E67: 0 | F67: 0
A68: Коробатая | B68: 860 | C68: 0 | D68: 0 | E68: 0 | F68: 860
A69: Не прокрашенные пятна | B69: 0 | C69: 0 | D69: 0 | E69: 0 | F69: =SUM(B69:E69) -> 0
A70: Выщипы | B70: 0 | C70: 0 | D70: 0 | E70: 0 | F70: =SUM(B70:E70) -> 0
A71: Недомол | B71: 3000 | C71: 0 | D71: 0 | E71: 0 | F71: =SUM(B71:E71) -> 3000
A72: Неравномерный просвет | B72: 0 | C72: 0 | D72: 0 | E72: 0 | F72: =SUM(B72:E72) -> 0
A73: Нет защиты | B73: 0 | C73: 0 | D73: 0 | E73: 0 | F73: =SUM(B73:E73) -> 0
A74: Обрывы | B74: 0 | C74: 0 | D74: 0 | E74: 0 | F74: =SUM(B74:E74) -> 0
A75: впитываемость | B75: 1000 | C75: 0 | D75: 0 | E75: 0 | F75: 1000
A76: разнооттеночность | B76: 0 | C76: 0 | D76: 0 | E76: 0 | F76: 0
A77: Нет защитного волокна | B77: 0 | C77: 0 | D77: 0 | E77: 0 | F77: 0
A78: 4 защитных волокна | B78: 460 | C78: 0 | D78: 0 | E78: 0 | F78: 460
A79: Мало защитного волокна | B79: 0 | C79: 0 | D79: 0 | E79: 0 | F79: 0
A80: Фон | B80: =SUM(B38+G38) -> 0 | C80: =SUM(C38+H38) -> 0 | D80: =SUM(D38+I38) -> 0 | E80: =SUM(E38+J38) -> 0 | F80: =SUM(B80:E80) -> 0
A81: количество несоответствий [Σ ] | B81: =SUM(B46:B80) -> 20986.1 | C81: =SUM(C46:C80) -> 0 | D81: =SUM(D46:D80) -> 0 | E81: =SUM(E46:E80) -> 0 | F81: =SUM(F46:F80) -> 20986.1
A82: без пусковой, выраб. | B82: =SUM(B81)-SUM(B46:B47) -> 20186.1 | C82: =SUM(C81)-SUM(C46:C47) -> 0 | D82: =SUM(D81)-SUM(D46:D47) -> 0 | E82: =SUM(E81)-SUM(E46:E47) -> 0 | F82: =SUM(F81)-SUM(F46:F47) -> 20186.1

Sheet Буйко
A1: 2015 г. БДМ № 1 | E1: Буйко
A2: вид несоответствий | B2: массовые виды
A3: Пусковая | B3: 1050 | M3: =SUM(B3:L3) -> 1050
A4: Выработка бассейнов | M4: =SUM(B4:L4) -> 0
A5: Переходная | M5: 0
A6: Продушина | B6: 500 | C6: 300 | M6: 800
A7: Складка | B7: 30 | M7: 30
A8: Ребристость | M8: 0
A9: Сорность | M9: 0
A10: Грязные полосы,пятна | M10: 0
A11: Дыры | M11: 0
A12: Пятна | B12: 520 | M12: 520
A13: Деформация рулона, Мягкий край рулона | M13: 0
A14: Колебания массы | B14: 860 | M14: 860
A15: Гладк.не соотв.ТУ | M15: 0
A16: Прокл.не соотв.ТУ | B16: 2080 | M16: 2080
A17: Kit не соотв.ТУ | M17: 0
A18: Зольность не соотв.ТУ | M18: 0
A19: Линейная деф.не соотв.ТУ | M19: 0
A20: Формат не соотв. размеру | M20: 0
A21: Брак по намотке,нет обрезки, махровый край | B21: 460 | M21: 460
A22: Надрывы | M22: 0
A23: Спутник | M23: 0
A24: Воздушная складка | M24: 0
A25: Коробатая | M25: 0
A26: Не прокрашенные пятна | B26: 850 | M26: 850
A27: Пузыри | M27: 0
A28: Недомол | M28: 0
A29: Неравномерный просвет | B29: 1050 | C29: 1050 | M29: 2100
A30: Скручивамость | M30: 0
A31: Обрывы | B31: 900 | M31: 900
A32: впитываемость | M32: 0
A33: разнооттеночность | M33: 0
A34: Нет защитного волокна | M34: 0
A35: 4 защитных волокна | M35: 0
A36: Мало защитного волокна | M36: 0
A37: Пятнаот пены | M37: 0
A38: количество несоответствий [Σ ] | B38: =SUM(B3:B37) -> 8300 | C38: 1350 | D38: 0 | E38: 0 | F38: 0 | G38: 0 | H38: 0 | I38: 0 | J38: 0 | K38: 0 | L38: 0 | M38: =SUM(M3:M37) -> 9650
A40: 2013 г. БДМ № 1
A41: Аринич
A42: вид несоответствий | B42: документная
A43: Пусковая | M43: =SUM(B43:L43) -> 0
A44: Выработка бассейнов | M44: =SUM(B44:L44) -> 0
A45: Переходная | B45: 600 | M45: 600
A46: Продушина | M46: 0
A47: Складка | B47: 110.5 | M47: 110.5
A48: Ребристость | M48: 0
A49: Сорность | B49: 782.3 | C49: 3941 | M49: 4723.3
A50: Грязные полосы,пятна | M50: 0
A51: Дыры | M51: 0
A52: Пятна от каландра | M52: 0
A53: Деформация рулона, Мягкий край рулона | B53: 102.3 | M53: 102.3
A54: Колебания массы | M54: 0
A55: Гладк.не соотв.ТУ | M55: 0
A56: Прокл.не соотв.ТУ | M56: 0
A57: Kit не соотв.ТУ | M57: 0
A58: Зольность не соотв.ТУ | M58: 0
A59: Линейная деф.не соотв.ТУ | M59: 0
A60: Формат не соотв. размеру | M60: 0
A61: Брак по намотке,нет обрезки, махровый край | M61: 0
A62: Надрывы | M62: 0
A63: Спутник | M63: 0
A64: Воздушная складка | M64: 0
A65: Коробатая | M65: 0
A66: Непрокрашенные пятна | M66: 0
A67: Выщипы | M67: 0
A68: Недомол | B68: 2550 | C68: 450 | M68: 3000
A69: Неравномерный просвет | M69: 0
A70: Нет защиты | M70: 0
A71: Обрывы | M71: 0
A72: впитываемость | M72: 0
A73: разнооттеночность | M73: 0
A74: Нет защитного волокна | M74: 0
A75: 4 защитных волокна | M75: 0
A76: Мало защитного волокна | M76: 0
A77: Пятнаот пены | M77: 0
A78: количество несоответствий [Σ ] | B78: =SUM(B43:B77) -> 4145.1 | C78: 4391 | D78: 0 | E78: 0 | F78: 0 | G78: 0 | H78: 0 | I78: 0 | J78: 0 | K78: 0 | L78: 0 | M78: =SUM(M43:M77) -> 8536.1
